fUST/lending_fUST_20250306
["ID","MTS","AMOUNT","RATE_DAILY","PERIOD"]
[355555078,1741271034731,-1415.17,0.00041369,120]
[355555079,1741271034772,-520.03,0.00041369,120]
[355555080,1741271034812,-500.0,0.00041369,120]
[355555081,1741271034849,-534.2,0.00041369,120]
[355555082,1741271034890,-676.27,0.00041369,120]
[355555083,1741271034931,-500.0,0.00041369,120]
[355555084,1741271034973,-2241.31,0.00041369,120]
[355555085,1741271035009,-3026.45,0.00041369,120]
[355555086,1741271035045,-965.35,0.00041369,120]
[355555087,1741271035080,-2375.11,0.00041369,120]
[355555088,1741271035114,-500.0,0.00041369,120]
[355555089,1741271035150,-2052.47,0.00041369,120]
[355555090,1741271035185,-610.1,0.00041369,120]
[355555091,1741271035221,-2164.86,0.00041369,120]
[355555092,1741271035259,-3883.6,0.00041369,120]
[355555093,1741271035299,-971.78,0.00041369,120]
[355555094,1741271035343,-544.43,0.00041369,120]
[355555095,1741271035380,-1730.51,0.00041369,120]
[355555096,1741271035416,-6002.47,0.00041369,120]
[355555097,1741271035452,-3005.74,0.00041369,120]
[355555098,1741271035489,-565.16,0.00041369,120]
[355555099,1741271035531,-1270.54,0.00041369,120]
[355555100,1741271035569,-4089.33,0.00041369,120]
[355555101,1741271035607,-1167.51,0.00041369,120]
[355555102,1741271035646,-16645.64,0.00041369,120]
[355555103,1741271035683,-2489.8,0.00041369,120]
[355555104,1741271035720,-4966.92,0.00041369,120]
[355555105,1741271035755,-1075.99,0.00041369,120]
[355555106,1741271035791,-2879.45,0.00041369,120]
[355555107,1741271035826,-500.0,0.00041369,120]
[355555108,1741271035862,-1911.45,0.00041369,120]
[355555109,1741271035897,-500.0,0.00041369,120]
[355555110,1741271035933,-1700.74,0.00041369,120]
[355555111,1741271035970,-1125.31,0.00041369,120]
[355555112,1741271036006,-2577.76,0.00041369,120]
[355555113,1741271036040,-249.52,0.00041599,30]
[355555114,1741271036076,-561.03,0.00041643,120]
[355555115,1741271036113,-500.0,0.00041643,120]
[355555116,1741271036153,-687.89,0.00041643,120]
[355555117,1741271036190,-1099.59,0.00041643,120]
[355555118,1741271036230,-752.11,0.00041643,120]
[355555119,1741271036269,-1468.62,0.00041643,120]
[355555120,1741271036307,-756.76,0.00041643,120]
[355555121,1741271036342,-500.0,0.00041643,120]
[355555122,1741271036382,-1110.36,0.00041643,120]
[355555123,1741271036421,-891.47,0.00041643,120]
[355555124,1741271036458,-884.06,0.00041643,120]
[355555125,1741271036493,-500.0,0.00041643,120]
[355555126,1741271036531,-500.0,0.00041643,120]
[355555127,1741271036565,-1074.64,0.00041643,120]
[355555128,1741271036602,-500.0,0.00041643,120]
[355555129,1741271036638,-500.0,0.00041643,120]
[355555130,1741271036674,-950.1,0.00041643,120]
[355555131,1741271036711,-500.0,0.00041643,120]
[355555132,1741271036748,-500.0,0.00041643,120]
[355555133,1741271036788,-1225.2,0.00041643,120]
[355555134,1741271036823,-500.0,0.00041643,120]
[355555135,1741271036858,-2162.05,0.00041643,120]
[355555136,1741271036893,-1648.67,0.00041643,120]
[355555137,1741271036928,-500.0,0.00041643,120]
[355555138,1741271037111,-610.21,0.00041643,120]
[355555139,1741271037147,-1829.08,0.00041643,120]
[355555140,1741271037181,-500.0,0.00041643,120]
[355555141,1741271037217,-1064.07,0.00041643,120]
[355555142,1741271037252,-2114.99,0.00041643,120]
[355555143,1741271037288,-911.44,0.00041643,120]
[355555144,1741271037325,-531.27,0.00041643,120]
[355555145,1741271037360,-500.0,0.00041643,120]
[355555146,1741271037395,-636.67,0.00041643,120]
[355555147,1741271037430,-500.0,0.00041643,120]
[355555148,1741271037465,-584.29,0.00041643,120]
[355555149,1741271037502,-500.0,0.00041643,120]
[355555150,1741271037539,-500.0,0.00041643,120]
[355555151,1741271037573,-647.06,0.00041643,120]
[355555152,1741271037609,-938.8,0.00041643,120]
[355555153,1741271037643,-636.14,0.00041643,120]
[355555154,1741271037678,-988.71,0.00041643,120]
[355555155,1741271037712,-962.89,0.00041643,120]
[355555156,1741271037747,-1193.91,0.00041643,120]
[355555157,1741271037782,-1080.04,0.00041643,120]
[355555158,1741271037817,-500.0,0.00041643,120]
[355555159,1741271037855,-548.17,0.00041643,120]
[355555160,1741271037894,-1071.92,0.00041643,120]
[355555161,1741271037932,-515.91,0.00041643,120]
[355555162,1741271037967,-500.0,0.00041643,120]
[355555163,1741271038002,-1187.86,0.00041643,120]
[355555164,1741271038039,-1547.49,0.00041643,120]
[355555165,1741271038073,-752.94,0.00041643,120]
[355555166,1741271038109,-1999.21,0.00041643,120]
[355555167,1741271038143,-508.31,0.00041643,120]
[355555168,1741271038180,-968.14,0.00041643,120]
[355555169,1741271038216,-500.0,0.00041643,120]
[355555170,1741271038256,-648.77,0.00041643,120]
[355555171,1741271038294,-954.53,0.00041643,120]
[355555172,1741271038332,-500.0,0.00041643,120]
[355555173,1741271038368,-676.1,0.00041643,120]
[355555174,1741271038403,-1000.0,0.00041643,30]
[355555175,1741271038441,-1140.67,0.00041643,120]
[355555176,1741271038478,-500.0,0.00041643,120]
[355555177,1741271038514,-1042.73,0.00041643,120]
[355555178,1741271038554,-500.0,0.00041643,120]
[355555179,1741271038591,-500.0,0.00041643,120]
[355555180,1741271038626,-612.71,0.00041643,120]
[355555181,1741271038658,-760.52,0.00041643,120]
[355555182,1741271038691,-742.11,0.00041643,120]
[355555183,1741271038724,-500.0,0.00041643,120]
[355555184,1741271038761,-1001.19,0.00041643,120]
[355555185,1741271038794,-500.0,0.00041643,120]
[355555186,1741271038828,-4531.68,0.00041643,120]
[355555187,1741271038863,-741.51,0.00041643,120]
[355555188,1741271038898,-481.78203384,0.00041643,120]
[355555189,1741271038933,-500.0,0.00041643,120]
[355555190,1741271038970,-967.99,0.00041643,120]
[355555191,1741271039005,-1974.75,0.00041643,120]
[355555192,1741271039042,-500.0,0.00041643,120]
[355555193,1741271039077,-1553.24,0.00041643,120]
[355555194,1741271039115,-724.76,0.00041643,120]
[355555195,1741271039151,-500.0,0.00041643,120]
[355555196,1741271039192,-1006.48,0.00041643,120]
[355555197,1741271039229,-500.0,0.00041643,120]
[355555198,1741271039268,-500.0,0.00041643,120]
[355555199,1741271039304,-1042.97,0.00041643,120]
[355555200,1741271039342,-500.0,0.00041643,120]
[355555201,1741271039379,-795.85,0.00041643,120]
[355555202,1741271039415,-767.53,0.00041643,120]
[355555203,1741271039455,-1222.66,0.00041643,120]
[355555204,1741271039493,-11492.84,0.00041643,30]
[355555205,1741271039531,-500.0,0.00041643,120]
[355555206,1741271039566,-500.0,0.00041643,120]
[355555207,1741271039602,-500.0,0.00041643,120]
[355555208,1741271039637,-804.73,0.00041643,120]
[355555209,1741271039671,-891.44,0.00041643,120]
[355555210,1741271039707,-500.0,0.00041643,120]
[355555211,1741271039742,-860.38,0.00041643,120]
[355555212,1741271039777,-638.36,0.00041643,120]
[355555213,1741271039817,-7547.79,0.00041643,120]
[355555214,1741271039855,-6952.99,0.00041643,120]
[355555215,1741271039892,-8928.86,0.00041643,120]
[355555216,1741271039931,-500.0,0.00041643,120]
[355555217,1741271039971,-11217.98,0.00041643,120]
[355555218,1741271040009,-12650.34,0.00041643,120]
[355555219,1741271040048,-671.11,0.00041643,120]
[355555220,1741271040089,-1347.04,0.00041643,120]
[355555221,1741271040131,-743.57,0.00041643,120]
[355555222,1741271040172,-500.0,0.00041643,120]
[355555223,1741271040212,-14660.74,0.00041643,120]
[355555224,1741271040254,-743.24,0.00041643,120]
[355555225,1741271040298,-1243.9,0.00041643,120]
[355555226,1741271040342,-1229.39,0.00041643,120]
[355555227,1741271040380,-930.18,0.00041643,120]
[355555228,1741271040417,-500.0,0.00041643,120]
[355555229,1741271040456,-4141.21,0.00041643,120]
[355555230,1741271040492,-500.0,0.00041643,120]
[355555231,1741271040532,-4912.79,0.00041643,120]
[355555232,1741271040568,-1019.55,0.00041643,120]
[355555233,1741271040606,-1927.41,0.00041643,120]
[355555234,1741271040651,-562.37,0.00041643,120]
[355555235,1741271040687,-588.98,0.00041643,120]
[355555236,1741271040725,-1728.34,0.00041643,120]
[355555237,1741271040760,-773.49,0.00041643,120]
[355555238,1741271040795,-989.07,0.00041643,120]
[355555239,1741271040830,-780.02,0.00041643,120]
[355555240,1741271040866,-1721.71,0.00041643,120]
[355555241,1741271040901,-1621.8,0.00041643,120]
[355555242,1741271041083,-3792.33,0.00041643,120]
[355555243,1741271041121,-1769.32,0.00041643,120]
[355555244,1741271041159,-500.0,0.00041643,120]
[355555245,1741271041195,-500.0,0.00041643,120]
[355555246,1741271041233,-539.76,0.00041643,120]
[355555247,1741271041271,-6300.9,0.00041643,120]
[355555248,1741271041310,-1291.62,0.00041643,120]
[355555249,1741271041349,-629.53,0.00041643,120]
[355555250,1741271041390,-1376.17,0.00041643,120]
[355555251,1741271041427,-500.0,0.00041643,120]
[355555252,1741271041466,-2291.69,0.00041643,120]
[355555253,1741271041502,-500.0,0.00041643,30]
[355555254,1741271041542,-13081.35,0.00041643,120]
[355555255,1741271041579,-956.01,0.00041643,120]
[355555256,1741271041616,-1308.06,0.00041643,120]
[355555257,1741271041653,-673.65,0.00041643,120]
[355555258,1741271041696,-1988.24,0.00041643,120]
[355555259,1741271041737,-7915.38,0.00041643,120]
[355555260,1741271041780,-4641.08,0.00041643,120]
[355555261,1741271041818,-500.0,0.00041643,120]
[355555262,1741271041859,-1415.17,0.00041643,120]
[355555263,1741271041897,-520.03,0.00041643,120]
[355555264,1741271041936,-500.0,0.00041643,120]
[355555265,1741271041977,-534.2,0.00041643,120]
[355555266,1741271042016,-676.27,0.00041643,120]
[355555267,1741271042054,-500.0,0.00041643,120]
[355555268,1741271042092,-2241.31,0.00041643,120]
[355555269,1741271042136,-3026.45,0.00041643,120]
[355555270,1741271042174,-965.35,0.00041643,120]
[355555271,1741271042210,-2375.11,0.00041643,120]
[355555272,1741271042247,-500.0,0.00041643,120]
[355555273,1741271042286,-2052.47,0.00041643,120]
[355555274,1741271042324,-610.1,0.00041643,120]
[355555275,1741271042365,-2164.86,0.00041643,120]
[355555276,1741271042407,-3883.6,0.00041643,120]
[355555277,1741271042449,-971.78,0.00041643,120]
[355555278,1741271042490,-544.43,0.00041643,120]
[355555279,1741271042526,-1730.51,0.00041643,120]
[355555280,1741271042563,-6002.47,0.00041643,120]
[355555281,1741271042601,-3005.74,0.00041643,120]
[355555282,1741271042638,-565.16,0.00041643,120]
[355555283,1741271042675,-1270.54,0.00041643,120]
[355555284,1741271042711,-4089.33,0.00041643,120]
[355555285,1741271042746,-1167.51,0.00041643,120]
[355555286,1741271042782,-16645.64,0.00041643,120]
[355555287,1741271042820,-2489.8,0.00041643,120]
[355555288,1741271042860,-4966.92,0.00041643,120]
[355555289,1741271042898,-1075.99,0.00041643,120]
[355555290,1741271042935,-2879.45,0.00041643,120]
[355555291,1741271042972,-500.0,0.00041643,120]
[355555292,1741271043010,-1911.45,0.00041643,120]
[355555293,1741271043048,-500.0,0.00041643,120]
[355555294,1741271043089,-1700.74,0.00041643,120]
[355555295,1741271043131,-1125.31,0.00041643,120]
[355555296,1741271043173,-2577.76,0.00041643,120]
[355555297,1741271043212,-22792.38857068,0.00041769,30]
[355555298,1741271043252,-561.03,0.00041917,120]
[355555299,1741271043293,-500.0,0.00041917,120]
[355555300,1741271043335,-687.89,0.00041917,120]
[355555301,1741271043373,-1099.59,0.00041917,120]
[355555302,1741271043412,-752.11,0.00041917,120]
[355555303,1741271043452,-1468.62,0.00041917,120]
[355555304,1741271043491,-756.76,0.00041917,120]
[355555305,1741271043535,-500.0,0.00041917,120]
[355555306,1741271043578,-1110.36,0.00041917,120]
[355555307,1741271043619,-891.47,0.00041917,120]
[355555308,1741271043660,-884.06,0.00041917,120]
[355555309,1741271043700,-500.0,0.00041917,120]
[355555310,1741271043743,-500.0,0.00041917,120]
[355555311,1741271043791,-1074.64,0.00041917,120]
[355555312,1741271043832,-500.0,0.00041917,120]
[355555313,1741271043873,-205.0,0.00041917,120]
[355555314,1741271043914,-950.1,0.00041917,120]
[355555315,1741271043957,-500.0,0.00041917,120]
[355555316,1741271044001,-500.0,0.00041917,120]
[355555317,1741271044050,-1225.2,0.00041917,120]
[355555318,1741271044091,-405.96458554,0.00041917,120]
[355555319,1741271044133,-2162.05,0.00041917,120]
[355555320,1741271044173,-1648.67,0.00041917,120]
[355555321,1741271044214,-500.0,0.00041917,120]
[355555322,1741271044255,-610.21,0.00041917,120]
[355555323,1741271044300,-1829.08,0.00041917,120]
[355555324,1741271044345,-256.57113628,0.00041917,120]
[355555325,1741271044383,-1064.07,0.00041917,120]
[355555326,1741271044426,-2114.99,0.00041917,120]
[355555327,1741271044465,-911.44,0.00041917,120]
[355555328,1741271044506,-531.27,0.00041917,120]
[355555329,1741271044546,-500.0,0.00041917,120]
[355555330,1741271044583,-636.67,0.00041917,120]
[355555331,1741271044620,-500.0,0.00041917,120]
[355555332,1741271044656,-584.29,0.00041917,120]
[355555333,1741271044691,-500.0,0.00041917,120]
[355555334,1741271044736,-500.0,0.00041917,120]
[355555335,1741271044771,-647.06,0.00041917,120]
[355555336,1741271044813,-938.8,0.00041917,120]
[355555337,1741271044854,-636.14,0.00041917,120]
[355555338,1741271044897,-988.71,0.00041917,120]
[355555339,1741271044937,-962.89,0.00041917,120]
[355555340,1741271044973,-1193.91,0.00041917,120]
[355555341,1741271045010,-1080.04,0.00041917,120]
[355555342,1741271045046,-500.0,0.00041917,120]
[355555343,1741271045084,-548.17,0.00041917,120]
[355555344,1741271045122,-1071.92,0.00041917,120]
[355555345,1741271045301,-515.91,0.00041917,120]
[355555346,1741271045338,-500.0,0.00041917,120]
[355555347,1741271045375,-1187.86,0.00041917,120]
[355555348,1741271045411,-1547.49,0.00041917,120]
[355555349,1741271045448,-752.94,0.00041917,120]
[355555350,1741271045485,-1999.21,0.00041917,120]
[355555351,1741271045523,-508.31,0.00041917,120]
[355555352,1741271045562,-968.14,0.00041917,120]
[355555353,1741271045599,-500.0,0.00041917,120]
[355555354,1741271045635,-648.77,0.00041917,120]
[355555355,1741271045670,-954.53,0.00041917,120]
[355555356,1741271045708,-500.0,0.00041917,120]
[355555357,1741271045742,-676.1,0.00041917,120]
[355555358,1741271045780,-1000.0,0.00041917,30]
[355555359,1741271045818,-1140.67,0.00041917,120]
[355555360,1741271045856,-500.0,0.00041917,120]
[355555361,1741271045893,-1042.73,0.00041917,120]
[355555362,1741271045929,-500.0,0.00041917,120]
[355555363,1741271045965,-500.0,0.00041917,120]
[355555364,1741271046001,-612.71,0.00041917,120]
[355555365,1741271046036,-760.52,0.00041917,120]
[355555366,1741271046073,-742.11,0.00041917,120]
[355555367,1741271046109,-500.0,0.00041917,120]
[355555368,1741271046145,-1001.19,0.00041917,120]
[355555369,1741271046181,-500.0,0.00041917,120]
[355555370,1741271046219,-4531.68,0.00041917,120]
[355555371,1741271046256,-741.51,0.00041917,120]
[355555372,1741271046294,-500.0,0.00041917,120]
[355555373,1741271046332,-967.99,0.00041917,120]
[355555374,1741271046373,-1974.75,0.00041917,120]
[355555375,1741271046412,-500.0,0.00041917,120]
[355555376,1741271046449,-1553.24,0.00041917,120]
[355555377,1741271046489,-724.76,0.00041917,120]
[355555378,1741271046527,-500.0,0.00041917,120]
[355555379,1741271046564,-1006.48,0.00041917,120]
[355555380,1741271046601,-500.0,0.00041917,120]
[355555381,1741271046639,-500.0,0.00041917,120]
[355555382,1741271046677,-1042.97,0.00041917,120]
[355555383,1741271046716,-500.0,0.00041917,120]
[355555384,1741271046754,-795.85,0.00041917,120]
[355555385,1741271046793,-767.53,0.00041917,120]
[355555386,1741271046831,-1222.66,0.00041917,120]
[355555387,1741271046871,-11492.84,0.00041917,30]
[355555388,1741271046909,-500.0,0.00041917,120]
[355555389,1741271046947,-500.0,0.00041917,120]
[355555390,1741271046985,-500.0,0.00041917,120]
[355555391,1741271047023,-804.73,0.00041917,120]
[355555392,1741271047060,-891.44,0.00041917,120]
[355555393,1741271047097,-500.0,0.00041917,120]
[355555394,1741271047136,-860.38,0.00041917,120]
[355555395,1741271047173,-638.36,0.00041917,120]
[355555396,1741271047212,-7547.79,0.00041917,120]
[355555397,1741271047250,-6952.99,0.00041917,120]
[355555398,1741271047289,-8928.86,0.00041917,120]
[355555399,1741271047326,-500.0,0.00041917,120]
[355555400,1741271047362,-11217.98,0.00041917,120]
[355555401,1741271047398,-12650.34,0.00041917,120]
[355555402,1741271047433,-671.11,0.00041917,120]
[355555403,1741271047470,-1347.04,0.00041917,120]
[355555404,1741271047509,-743.57,0.00041917,120]
[355555405,1741271047549,-500.0,0.00041917,120]
[355555406,1741271047587,-14660.74,0.00041917,120]
[355555407,1741271047624,-743.24,0.00041917,120]
[355555408,1741271047662,-1243.9,0.00041917,120]
[355555409,1741271047697,-1229.39,0.00041917,120]
[355555410,1741271047734,-930.18,0.00041917,120]
[355555411,1741271047769,-500.0,0.00041917,120]
[355555412,1741271047805,-4141.21,0.00041917,120]
[355555413,1741271047840,-514.06984742,0.00041917,120]
[355555414,1741271047877,-4912.79,0.00041917,120]
[355555415,1741271047914,-1927.41,0.00041917,120]
[355555416,1741271047951,-1019.55,0.00041917,120]
[355555417,1741271047990,-562.37,0.00041917,120]
[355555418,1741271048029,-588.98,0.00041917,120]
[355555419,1741271048069,-1728.34,0.00041917,120]
[355555420,1741271048108,-989.07,0.00041917,120]
[355555421,1741271048148,-773.49,0.00041917,120]
[355555422,1741271048186,-780.02,0.00041917,120]
[355555423,1741271048225,-1721.71,0.00041917,120]
[355555424,1741271048267,-1621.8,0.00041917,120]
[355555425,1741271048312,-3792.33,0.00041917,120]
[355555426,1741271048356,-1769.32,0.00041917,120]
[355555427,1741271048397,-210.50371259,0.00041917,120]
[355555428,1741271048434,-500.0,0.00041917,120]
[355555429,1741271048474,-539.76,0.00041917,120]
[355555430,1741271048513,-6300.9,0.00041917,120]
[355555431,1741271048555,-1291.62,0.00041917,120]
[355555432,1741271048596,-629.53,0.00041917,120]
[355555433,1741271048634,-1376.17,0.00041917,120]
[355555434,1741271048675,-500.0,0.00041917,120]
[355555435,1741271048713,-2291.69,0.00041917,120]
[355555436,1741271048752,-500.0,0.00041917,30]
[355555437,1741271048790,-13081.35,0.00041917,120]
[355555438,1741271048830,-956.01,0.00041917,120]
[355555439,1741271048869,-1308.06,0.00041917,120]
[355555440,1741271048909,-673.65,0.00041917,120]
[355555441,1741271048950,-1988.24,0.00041917,120]
[355555442,1741271048992,-7915.38,0.00041917,120]
[355555443,1741271049031,-4641.08,0.00041917,120]
[355555444,1741271049072,-500.0,0.00041917,120]
[355555445,1741271049112,-1415.17,0.00041917,120]
[355555446,1741271049155,-520.03,0.00041917,120]
[355555447,1741271049194,-500.0,0.00041917,120]
[355555448,1741271049239,-534.2,0.00041917,120]
[355555449,1741271049430,-676.27,0.00041917,120]
[355555450,1741271049491,-500.0,0.00041917,120]
[355555451,1741271049537,-2241.31,0.00041917,120]
[355555452,1741271049579,-3026.45,0.00041917,120]
[355555453,1741271049619,-965.35,0.00041917,120]
[355555454,1741271049660,-2375.11,0.00041917,120]
[355555455,1741271049699,-500.0,0.00041917,120]
[355555456,1741271049740,-2052.47,0.00041917,120]
[355555457,1741271049777,-610.1,0.00041917,120]
[355555458,1741271049815,-2164.86,0.00041917,120]
[355555459,1741271049854,-3883.6,0.00041917,120]
[355555460,1741271049893,-971.78,0.00041917,120]
[355555461,1741271049933,-544.43,0.00041917,120]
[355555462,1741271049974,-1730.51,0.00041917,120]
[355555463,1741271050015,-6002.47,0.00041917,120]
[355555464,1741271050057,-3005.74,0.00041917,120]
[355555465,1741271050101,-565.16,0.00041917,120]
[355555466,1741271050141,-1270.54,0.00041917,120]
[355555467,1741271050182,-4089.33,0.00041917,120]
[355555468,1741271050219,-1167.51,0.00041917,120]
[355555469,1741271050267,-16645.64,0.00041917,120]
[355555470,1741271050330,-2489.8,0.00041917,120]
[355555471,1741271050381,-4966.92,0.00041917,120]
[355555472,1741271050428,-1075.99,0.00041917,120]
[355555473,1741271050476,-2879.45,0.00041917,120]
[355555474,1741271050525,-500.0,0.00041917,120]
[355555475,1741271050570,-1911.45,0.00041917,120]
[355555476,1741271050610,-500.0,0.00041917,120]
[355555477,1741271050651,-1700.74,0.00041917,120]
[355555478,1741271050691,-2577.76,0.00041917,120]
[355555479,1741271050732,-1125.31,0.00041917,120]
[355555480,1741271050773,-650.0,0.00042,90]
[355555481,1741271050811,-150.0,0.00042,120]
[355555482,1741271050853,-30000.0,0.00042,120]
[355555483,1741271050895,-15028.0,0.00042,120]
[355555484,1741271050934,-500.0,0.00042,120]
[355555485,1741271050968,-561.03,0.00042191,120]
[355555486,1741271051003,-468.93979635,0.00042191,120]
[355555487,1741271051039,-687.89,0.00042191,120]
[355555488,1741271051076,-1099.59,0.00042191,120]
[355555489,1741271051110,-752.11,0.00042191,120]
[355555490,1741271051144,-1468.62,0.00042191,120]
[355555491,1741271051178,-756.76,0.00042191,120]
[355555492,1741271051214,-500.0,0.00042191,120]
[355555493,1741271051247,-1110.36,0.00042191,120]
[355555494,1741271051283,-891.47,0.00042191,120]
[355555495,1741271051317,-884.06,0.00042191,120]
[355555496,1741271051354,-343.46720463,0.00042191,120]
[355555497,1741271051391,-500.0,0.00042191,120]
[355555498,1741271051429,-1074.64,0.00042191,120]
[355555499,1741271051465,-500.0,0.00042191,120]
[355555500,1741271051505,-950.1,0.00042191,120]
[355555501,1741271051540,-500.0,0.00042191,120]
[355555502,1741271051578,-500.0,0.00042191,120]
[355555503,1741271051617,-1225.2,0.00042191,120]
[355555504,1741271051656,-2162.05,0.00042191,120]
[355555505,1741271051692,-1648.67,0.00042191,120]
[355555506,1741271051731,-500.0,0.00042191,120]
[355555507,1741271051769,-610.21,0.00042191,120]
[355555508,1741271051806,-1829.08,0.00042191,120]
[355555509,1741271051843,-1064.07,0.00042191,120]
[355555510,1741271051881,-2114.99,0.00042191,120]
[355555511,1741271051918,-911.44,0.00042191,120]
[355555512,1741271051959,-531.27,0.00042191,120]
[355555513,1741271051996,-500.0,0.00042191,120]
[355555514,1741271052035,-636.67,0.00042191,120]
[355555515,1741271052072,-500.0,0.00042191,120]
[355555516,1741271052110,-584.29,0.00042191,120]
[355555517,1741271052147,-500.0,0.00042191,120]
[355555518,1741271052186,-500.0,0.00042191,120]
[355555519,1741271052222,-647.06,0.00042191,120]
[355555520,1741271052259,-938.8,0.00042191,120]
[355555521,1741271052296,-636.14,0.00042191,120]
[355555522,1741271052334,-988.71,0.00042191,120]
[355555523,1741271052369,-962.89,0.00042191,120]
[355555524,1741271052409,-1193.91,0.00042191,120]
[355555525,1741271052449,-1080.04,0.00042191,120]
[355555526,1741271052490,-500.0,0.00042191,120]
[355555527,1741271052530,-548.17,0.00042191,120]
[355555528,1741271052569,-1071.92,0.00042191,120]
[355555529,1741271052605,-515.91,0.00042191,120]
[355555530,1741271052644,-500.0,0.00042191,120]
[355555531,1741271052680,-1187.86,0.00042191,120]
[355555532,1741271052716,-1547.49,0.00042191,120]
[355555533,1741271052752,-752.94,0.00042191,120]
[355555534,1741271052787,-1999.21,0.00042191,120]
[355555535,1741271052822,-508.31,0.00042191,120]
[355555536,1741271052856,-968.14,0.00042191,120]
[355555537,1741271052894,-500.0,0.00042191,120]
[355555538,1741271052931,-648.77,0.00042191,120]
[355555539,1741271052966,-954.53,0.00042191,120]
[355555540,1741271053008,-500.0,0.00042191,120]
[355555541,1741271053057,-676.1,0.00042191,120]
[355555542,1741271053095,-1140.67,0.00042191,120]
[355555543,1741271053131,-1000.0,0.00042191,30]
[355555544,1741271053169,-500.0,0.00042191,120]
[355555545,1741271053206,-1042.73,0.00042191,120]
[355555546,1741271053245,-500.0,0.00042191,120]
[355555547,1741271053282,-500.0,0.00042191,120]
[355555548,1741271053318,-612.71,0.00042191,120]
[355555549,1741271053353,-760.52,0.00042191,120]
[355555550,1741271053388,-742.11,0.00042191,120]
[355555551,1741271053424,-500.0,0.00042191,120]
[355555552,1741271053463,-1001.19,0.00042191,120]
[355555553,1741271053647,-635.67921169,0.00042191,120]
[355555554,1741271053682,-4531.68,0.00042191,120]
[355555555,1741271053720,-741.51,0.00042191,120]
[355555556,1741271053755,-500.0,0.00042191,120]
[355555557,1741271053791,-967.99,0.00042191,120]
[355555558,1741271053827,-1974.75,0.00042191,120]
[355555559,1741271053865,-286.3,0.00042191,120]
[355555560,1741271053903,-1553.24,0.00042191,120]
[355555561,1741271053943,-724.76,0.00042191,120]
[355555562,1741271053981,-500.0,0.00042191,120]
[355555563,1741271054018,-1006.48,0.00042191,120]
[355555564,1741271054055,-500.0,0.00042191,120]
[355555565,1741271054092,-500.0,0.00042191,120]
[355555566,1741271054130,-1042.97,0.00042191,120]
[355555567,1741271054167,-500.0,0.00042191,120]
[355555568,1741271054204,-795.85,0.00042191,120]
[355555569,1741271054245,-767.53,0.00042191,120]
[355555570,1741271054286,-1222.66,0.00042191,120]
[355555571,1741271054326,-11492.84,0.00042191,30]
[355555572,1741271054365,-500.0,0.00042191,120]
[355555573,1741271054402,-500.0,0.00042191,120]
[355555574,1741271054440,-500.0,0.00042191,120]
[355555575,1741271054477,-2286.32,0.00042191,120]
[355555576,1741271054513,-804.73,0.00042191,120]
[355555577,1741271054552,-891.44,0.00042191,120]